[Event "*** Titled Tuesday Blitz"]
[Site "Chess.com"]
[Date "2019.03.05"]
[Round "3"]
[White "Ar4uha"]
[Black "tteshan"]
[Result "1-0"]
[WhiteElo "2474"]
[BlackElo "2211"]
[TimeControl "180+2"]
[EndTime "13:38:43 PST"]
[Termination "Ar4uha won by resignation"]

1. e4 {[%clk 0:03:01.9]} 1... c5 {[%clk 0:02:47]} 2. Nf3 {[%clk 0:02:58]} 2...
Nc6 {[%clk 0:02:44.8]} 3. Bb5 {[%clk 0:02:58.6]} 3... e6 {[%clk 0:02:43.3]} 4.
O-O {[%clk 0:02:59]} 4... Nge7 {[%clk 0:02:43.2]} 5. d4 {[%clk 0:03:00.5]} 5...
cxd4 {[%clk 0:02:43.4]} 6. Nxd4 {[%clk 0:03:02.4]} 6... a6 {[%clk 0:02:42.5]} 7.
Be2 {[%clk 0:03:00.6]} 7... Nxd4 {[%clk 0:02:35.6]} 8. Qxd4 {[%clk 0:03:02.5]}
8... Nc6 {[%clk 0:02:36.5]} 9. Qc3 {[%clk 0:03:03.8]} 9... Qf6 {[%clk 0:02:31]}
10. Qxf6 {[%clk 0:03:05]} 10... gxf6 {[%clk 0:02:31.7]} 11. Be3 {[%clk
0:03:06.9]} 11... Bd6 {[%clk 0:02:26.8]} 12. Rd1 {[%clk 0:03:06.9]} 12... Be5
{[%clk 0:02:26.6]} 13. c3 {[%clk 0:03:07]} 13... b5 {[%clk 0:02:20.1]} 14. a4
{[%clk 0:03:07.9]} 14... b4 {[%clk 0:02:14.2]} 15. f4 {[%clk 0:03:09.4]} 15...
Bc7 {[%clk 0:02:13]} 16. c4 {[%clk 0:03:07.5]} 16... a5 {[%clk 0:02:11.3]} 17.
Nd2 {[%clk 0:03:08.4]} 17... Bb7 {[%clk 0:02:09.2]} 18. Nb3 {[%clk 0:03:07.6]}
18... d6 {[%clk 0:02:03.8]} 19. Bf3 {[%clk 0:03:03.7]} 19... O-O-O {[%clk
0:02:04.3]} 20. c5 {[%clk 0:03:00.7]} 20... Rhg8 {[%clk 0:01:35.1]} 21. Rac1
{[%clk 0:02:56.9]} 21... Kb8 {[%clk 0:01:33.2]} 22. cxd6 {[%clk 0:02:57.3]}
22... Rxd6 {[%clk 0:01:32.4]} 23. Rxd6 {[%clk 0:02:57.8]} 23... Bxd6 {[%clk
0:01:33.3]} 24. e5 {[%clk 0:02:59.2]} 24... fxe5 {[%clk 0:01:16]} 25. Bxc6
{[%clk 0:03:00]} 25... exf4 {[%clk 0:01:16.7]} 26. Bf2 {[%clk 0:03:01.4]} 26...
Ba6 {[%clk 0:01:01.9]} 27. Nxa5 {[%clk 0:02:58.6]} 27... Be5 {[%clk 0:00:46.3]}
28. b3 {[%clk 0:02:56.2]} 28... Rc8 {[%clk 0:00:42]} 29. Rc5 {[%clk 0:02:42.2]}
29... Bc7 {[%clk 0:00:36.1]} 30. Bd7 {[%clk 0:02:38]} 30... Rd8 {[%clk
0:00:33.9]} 31. Nc6+ {[%clk 0:02:38.2]} 31... Kb7 {[%clk 0:00:29.6]} 32. Nxd8+
{[%clk 0:02:39.6]} 32... Bxd8 {[%clk 0:00:31.5]} 33. Bc8+ {[%clk 0:02:40.6]} 1-0

[Event "*** Titled Tuesday Blitz"]
[Site "Chess.com"]
[Date "2019.03.05"]
[Round "3"]
[White "Shahinyan_ChessMood"]
[Black "goodluck06"]
[Result "1-0"]
[WhiteElo "2635"]
[BlackElo "2423"]
[TimeControl "180+2"]
[EndTime "13:38:44 PST"]
[Termination "Shahinyan_ChessMood won by resignation"]

1. c4 {[%clk 0:02:57.5]} 1... Nf6 {[%clk 0:03:00.3]} 2. Nc3 {[%clk 0:02:58.5]}
2... e5 {[%clk 0:02:57.8]} 3. Nf3 {[%clk 0:02:58.8]} 3... Nc6 {[%clk 0:02:58.2]}
4. e4 {[%clk 0:03:00]} 4... Bc5 {[%clk 0:02:52.1]} 5. Nxe5 {[%clk 0:03:00.2]}
5... Nxe5 {[%clk 0:02:46.2]} 6. d4 {[%clk 0:03:00.7]} 6... Bb4 {[%clk
0:02:25.9]} 7. dxe5 {[%clk 0:03:01.3]} 7... Nxe4 {[%clk 0:02:26.4]} 8. Qf3
{[%clk 0:03:03.2]} 8... Nxc3 {[%clk 0:02:26.1]} 9. bxc3 {[%clk 0:03:05]} 9...
Be7 {[%clk 0:02:23.8]} 10. Qg3 {[%clk 0:03:05.7]} 10... g6 {[%clk 0:02:22.5]}
11. Bh6 {[%clk 0:02:53.9]} 11... b6 {[%clk 0:02:09.9]} 12. Be2 {[%clk
0:02:48.3]} 12... Bb7 {[%clk 0:02:10.6]} 13. O-O {[%clk 0:02:49.8]} 13... c5
{[%clk 0:02:08.7]} 14. Rad1 {[%clk 0:02:41]} 14... Qc7 {[%clk 0:02:09.2]} 15. e6
{[%clk 0:02:02]} 15... O-O-O {[%clk 0:02:02.5]} 16. Bf4 {[%clk 0:01:59]} 16...
d6 {[%clk 0:02:01.2]} 17. exf7 {[%clk 0:01:58.8]} 17... Rhf8 {[%clk 0:01:56.2]}
18. Bg4+ {[%clk 0:01:43.1]} 18... Kb8 {[%clk 0:01:56.9]} 19. Be6 {[%clk
0:01:44.5]} 19... Bc8 {[%clk 0:01:58]} 20. Bd5 {[%clk 0:01:45.3]} 20... Bf6
{[%clk 0:01:48.5]} 21. Rfe1 {[%clk 0:01:44.2]} 21... Bf5 {[%clk 0:01:35.9]} 22.
Re8 {[%clk 0:01:42.1]} 22... Kc8 {[%clk 0:01:13.2]} 23. Rxf8 {[%clk 0:01:38.7]}
23... Rxf8 {[%clk 0:01:13.6]} 24. Bxd6 {[%clk 0:01:40.2]} 24... Qd7 {[%clk
0:01:11.5]} 25. Bxf8 {[%clk 0:01:39.6]} 1-0

[Event "*** Titled Tuesday Blitz"]
[Site "Chess.com"]
[Date "2019.03.05"]
[Round "3"]
[White "SerkanSoysal"]
[Black "Alexander_Moskalenko"]
[Result "0-1"]
[WhiteElo "2579"]
[BlackElo "2753"]
[TimeControl "180+2"]
[EndTime "13:38:53 PST"]
[Termination "Alexander_Moskalenko won by resignation"]

1. d4 {[%clk 0:03:01.9]} 1... Nf6 {[%clk 0:03:00.3]} 2. c4 {[%clk 0:03:02.3]}
2... g6 {[%clk 0:03:01.1]} 3. Nc3 {[%clk 0:03:01.9]} 3... d5 {[%clk 0:03:02.2]}
4. Nf3 {[%clk 0:02:53.9]} 4... Bg7 {[%clk 0:03:03.2]} 5. cxd5 {[%clk 0:02:54.9]}
5... Nxd5 {[%clk 0:03:04]} 6. e4 {[%clk 0:02:56]} 6... Nxc3 {[%clk 0:03:05.6]}
7. bxc3 {[%clk 0:02:57.8]} 7... c5 {[%clk 0:03:07.5]} 8. h3 {[%clk 0:02:57.9]}
8... O-O {[%clk 0:03:06]} 9. Be2 {[%clk 0:02:55.2]} 9... b6 {[%clk 0:03:07.4]}
10. O-O {[%clk 0:02:55.3]} 10... Bb7 {[%clk 0:03:08.5]} 11. Qd3 {[%clk
0:02:51.8]} 11... Nd7 {[%clk 0:03:08.9]} 12. e5 {[%clk 0:02:38.2]} 12... e6
{[%clk 0:03:07.7]} 13. a4 {[%clk 0:02:34.7]} 13... a6 {[%clk 0:03:06.3]} 14. Rb1
{[%clk 0:02:30.5]} 14... Qc7 {[%clk 0:03:03.5]} 15. Be3 {[%clk 0:02:29.5]} 15...
Bc6 {[%clk 0:03:03.4]} 16. Qc2 {[%clk 0:02:12.8]} 16... Bxf3 {[%clk 0:03:04.4]}
17. Bxf3 {[%clk 0:02:11.1]} 17... cxd4 {[%clk 0:03:05.3]} 18. Bxd4 {[%clk
0:02:12.8]} 18... Rab8 {[%clk 0:02:59.7]} 19. Qe2 {[%clk 0:01:58.4]} 19... Nxe5
{[%clk 0:02:58.2]} 20. Bxe5 {[%clk 0:01:52.3]} 20... Bxe5 {[%clk 0:02:35.2]} 21.
Qxa6 {[%clk 0:01:52]} 21... Qxc3 {[%clk 0:02:36.3]} 22. Rxb6 {[%clk 0:01:49.2]}
22... Bd4 {[%clk 0:02:37.7]} 23. Rxb8 {[%clk 0:01:17.6]} 23... Rxb8 {[%clk
0:02:39.6]} 24. a5 {[%clk 0:01:19.3]} 24... Rb2 {[%clk 0:02:32.8]} 25. Qa8+
{[%clk 0:01:02.7]} 25... Kg7 {[%clk 0:02:33.3]} 26. a6 {[%clk 0:01:03.6]} 26...
Bxf2+ {[%clk 0:02:22.4]} 27. Kh1 {[%clk 0:00:56.1]} 27... Qd3 {[%clk 0:02:22.7]}
28. Rd1 {[%clk 0:00:47.9]} 28... Rb1 {[%clk 0:02:18.7]} 0-1

[Event "*** Titled Tuesday Blitz"]
[Site "Chess.com"]
[Date "2019.03.05"]
[Round "3"]
[White "aridannie"]
[Black "calemcc"]
[Result "1-0"]
[WhiteElo "2365"]
[BlackElo "2231"]
[TimeControl "180+2"]
[EndTime "13:39:06 PST"]
[Termination "aridannie won by resignation"]

1. e4 {[%clk 0:02:58.4]} 1... e6 {[%clk 0:03:00.5]} 2. d4 {[%clk 0:02:59]} 2...
d5 {[%clk 0:03:02.4]} 3. Nd2 {[%clk 0:02:59.6]} 3... Nc6 {[%clk 0:03:03.1]} 4.
Ngf3 {[%clk 0:02:57]} 4... Nf6 {[%clk 0:03:01.6]} 5. e5 {[%clk 0:02:56.5]} 5...
Nd7 {[%clk 0:03:02.6]} 6. c4 {[%clk 0:02:55.6]} 6... Be7 {[%clk 0:03:02.4]} 7.
Bd3 {[%clk 0:02:54.5]} 7... f6 {[%clk 0:03:00.9]} 8. cxd5 {[%clk 0:02:52.4]}
8... exd5 {[%clk 0:02:58.1]} 9. exf6 {[%clk 0:02:50.8]} 9... Bxf6 {[%clk
0:02:59.6]} 10. Nb3 {[%clk 0:02:50]} 10... O-O {[%clk 0:02:57.4]} 11. O-O {[%clk
0:02:50.6]} 11... Re8 {[%clk 0:02:55.9]} 12. Bf4 {[%clk 0:02:47.7]} 12... Nf8
{[%clk 0:02:55.6]} 13. h3 {[%clk 0:02:45.9]} 13... Be6 {[%clk 0:02:50.3]} 14.
Rc1 {[%clk 0:02:40.2]} 14... Rc8 {[%clk 0:02:31.7]} 15. Nc5 {[%clk 0:02:39.2]}
15... b6 {[%clk 0:02:25.6]} 16. Nb7 {[%clk 0:02:37.5]} 16... Qd7 {[%clk
0:02:22.9]} 17. Bb5 {[%clk 0:02:38.1]} 17... Bxh3 {[%clk 0:01:59.3]} 18. gxh3
{[%clk 0:02:32.3]} 18... Qxh3 {[%clk 0:01:58.2]} 19. Bxc6 {[%clk 0:02:29.5]}
19... Re4 {[%clk 0:01:56.6]} 20. Bg3 {[%clk 0:02:26.9]} 20... Rg4 {[%clk
0:01:55.3]} 21. Bxd5+ {[%clk 0:02:26.3]} 21... Kh8 {[%clk 0:01:55.7]} 22. Qe1
{[%clk 0:02:21.8]} 22... h5 {[%clk 0:01:30.7]} 23. Nh2 {[%clk 0:01:56.4]} 23...
Rg5 {[%clk 0:01:22.1]} 24. Bg2 {[%clk 0:01:54.7]} 24... Qf5 {[%clk 0:01:17.4]}
25. Qe4 {[%clk 0:01:48]} 25... Qb5 {[%clk 0:01:09.1]} 26. Nd6 {[%clk 0:01:40.6]}
1-0

[Event "*** Titled Tuesday Blitz"]
[Site "Chess.com"]
[Date "2019.03.05"]
[Round "3"]
[White "DanielMieles1985"]
[Black "NateSolon"]
[Result "1-0"]
[WhiteElo "2585"]
[BlackElo "2569"]
[TimeControl "180+2"]
[EndTime "13:39:16 PST"]
[Termination "DanielMieles1985 won by resignation"]

1. d4 {[%clk 0:03:01.9]} 1... d5 {[%clk 0:03:00.6]} 2. c4 {[%clk 0:03:02.7]}
2... dxc4 {[%clk 0:03:00.3]} 3. Nf3 {[%clk 0:03:03.1]} 3... a6 {[%clk
0:03:01.2]} 4. e3 {[%clk 0:03:00.8]} 4... Bg4 {[%clk 0:03:01.8]} 5. Bxc4 {[%clk
0:03:01]} 5... e6 {[%clk 0:03:02.9]} 6. O-O {[%clk 0:02:58]} 6... Nc6 {[%clk
0:03:03.8]} 7. h3 {[%clk 0:02:57.6]} 7... Bh5 {[%clk 0:03:04.8]} 8. Nc3 {[%clk
0:02:58.9]} 8... Nf6 {[%clk 0:03:05.6]} 9. Be2 {[%clk 0:03:00.1]} 9... Bd6
{[%clk 0:03:06.1]} 10. Bd2 {[%clk 0:03:01.3]} 10... O-O {[%clk 0:03:06.7]} 11.
Rc1 {[%clk 0:03:02.1]} 11... Qe8 {[%clk 0:03:05]} 12. Nh4 {[%clk 0:03:00.2]}
12... Bxe2 {[%clk 0:02:57.1]} 13. Qxe2 {[%clk 0:03:01.3]} 13... e5 {[%clk
0:02:31.1]} 14. d5 {[%clk 0:03:00.3]} 14... Ne7 {[%clk 0:02:31.9]} 15. e4 {[%clk
0:02:57.3]} 15... Ng6 {[%clk 0:01:57.9]} 16. Nf5 {[%clk 0:02:54.2]} 16... Bc5
{[%clk 0:01:56.7]} 17. g3 {[%clk 0:02:45.4]} 17... Ne7 {[%clk 0:01:34.3]} 18.
Be3 {[%clk 0:02:36.2]} 18... Bb4 {[%clk 0:01:28.7]} 19. Nxe7+ {[%clk 0:02:28.4]}
19... Qxe7 {[%clk 0:01:30.6]} 20. Qc4 {[%clk 0:02:11.3]} 20... Rac8 {[%clk
0:01:26.5]} 21. a3 {[%clk 0:02:07.5]} 21... Bxc3 {[%clk 0:01:23.3]} 22. Rxc3
{[%clk 0:02:05.3]} 22... Ne8 {[%clk 0:01:12.2]} 23. Bc5 {[%clk 0:02:00]} 23...
Nd6 {[%clk 0:01:13.1]} 24. Qb4 {[%clk 0:01:54.1]} 24... Rfd8 {[%clk 0:00:57.2]}
25. Rfc1 {[%clk 0:01:51.3]} 25... Qd7 {[%clk 0:00:55.7]} 26. Bxd6 {[%clk
0:01:40.6]} 26... Qxd6 {[%clk 0:00:53.8]} 27. Qxd6 {[%clk 0:01:39.6]} 27... Rxd6
{[%clk 0:00:53.6]} 28. Rxc7 {[%clk 0:01:40.5]} 28... Rb8 {[%clk 0:00:47.5]} 29.
Rxb7 {[%clk 0:01:38.8]} 1-0

[Event "*** Titled Tuesday Blitz"]
[Site "Chess.com"]
[Date "2019.03.05"]
[Round "3"]
[White "Vlad_Lukiianchuk"]
[Black "Keaton87"]
[Result "1-0"]
[WhiteElo "2627"]
[BlackElo "2544"]
[TimeControl "180+2"]
[EndTime "13:39:28 PST"]
[Termination "Vlad_Lukiianchuk won by resignation"]

1. d4 {[%clk 0:02:59.5]} 1... d5 {[%clk 0:03:00.2]} 2. Nf3 {[%clk 0:03:00]} 2...
Nf6 {[%clk 0:03:01]} 3. c4 {[%clk 0:03:00.3]} 3... e6 {[%clk 0:03:01.8]} 4. e3
{[%clk 0:02:59.9]} 4... Be7 {[%clk 0:03:00.1]} 5. Nc3 {[%clk 0:03:00.3]} 5...
O-O {[%clk 0:03:01.3]} 6. Bd3 {[%clk 0:02:59.2]} 6... dxc4 {[%clk 0:03:00.5]} 7.
Bxc4 {[%clk 0:02:59.9]} 7... b6 {[%clk 0:03:01.1]} 8. O-O {[%clk 0:02:58.9]}
8... Ba6 {[%clk 0:03:00.5]} 9. Bxa6 {[%clk 0:02:56]} 9... Nxa6 {[%clk
0:03:02.4]} 10. e4 {[%clk 0:02:51.6]} 10... c5 {[%clk 0:03:01.6]} 11. Bg5 {[%clk
0:02:44.6]} 11... cxd4 {[%clk 0:03:01.6]} 12. Nxd4 {[%clk 0:02:43.8]} 12... Rc8
{[%clk 0:02:56.7]} 13. Ndb5 {[%clk 0:02:30.6]} 13... Rc5 {[%clk 0:02:20.3]} 14.
Be3 {[%clk 0:02:20.3]} 14... Rc4 {[%clk 0:02:20.9]} 15. Qe2 {[%clk 0:02:10.9]}
15... Rb4 {[%clk 0:02:11.9]} 16. a3 {[%clk 0:02:04.7]} 16... Rxe4 {[%clk
0:01:46.4]} 17. Nxe4 {[%clk 0:01:59.6]} 17... Nxe4 {[%clk 0:01:48.3]} 18. Nxa7
{[%clk 0:01:58.6]} 18... Nac5 {[%clk 0:01:43.9]} 19. Nc6 {[%clk 0:01:53.1]}
19... Qe8 {[%clk 0:01:44.5]} 20. Nxe7+ {[%clk 0:01:53.1]} 20... Qxe7 {[%clk
0:01:45.8]} 21. b4 {[%clk 0:01:51]} 21... Na4 {[%clk 0:01:43.9]} 22. Qc2 {[%clk
0:01:32.3]} 22... Nec3 {[%clk 0:01:41.4]} 23. Bd4 {[%clk 0:01:25.6]} 23... Rc8
{[%clk 0:01:40.2]} 24. Bxc3 {[%clk 0:01:17.8]} 24... Nxc3 {[%clk 0:01:40.1]} 25.
Rac1 {[%clk 0:01:17.9]} 25... Qc7 {[%clk 0:01:30.5]} 26. g3 {[%clk 0:01:14.9]}
26... Qc4 {[%clk 0:01:28.7]} 27. Rfe1 {[%clk 0:01:08.8]} 27... h5 {[%clk
0:01:25.2]} 28. Re3 {[%clk 0:01:05.2]} 1-0

[Event "*** Titled Tuesday Blitz"]
[Site "Chess.com"]
[Date "2019.03.05"]
[Round "3"]
[White "Walter_White_Poland"]
[Black "nochewycandy"]
[Result "0-1"]
[WhiteElo "2201"]
[BlackElo "2378"]
[TimeControl "180+2"]
[EndTime "13:39:32 PST"]
[Termination "nochewycandy won by checkmate"]

1. e4 {[%clk 0:03:01.9]} 1... g6 {[%clk 0:03:00.4]} 2. d4 {[%clk 0:03:01.3]}
2... Bg7 {[%clk 0:03:01.4]} 3. Nc3 {[%clk 0:03:01.5]} 3... d6 {[%clk 0:03:02.4]}
4. f4 {[%clk 0:03:02.1]} 4... a6 {[%clk 0:03:03.5]} 5. Nf3 {[%clk 0:03:00.6]}
5... b5 {[%clk 0:03:03.5]} 6. e5 {[%clk 0:03:01.4]} 6... Nd7 {[%clk 0:02:55.8]}
7. Ne4 {[%clk 0:02:39.8]} 7... Nh6 {[%clk 0:02:49.6]} 8. a4 {[%clk 0:02:35.8]}
8... b4 {[%clk 0:02:49.1]} 9. Bd3 {[%clk 0:02:16.4]} 9... O-O {[%clk 0:02:49.7]}
10. O-O {[%clk 0:02:16]} 10... Bb7 {[%clk 0:02:49.1]} 11. Bd2 {[%clk 0:02:10.6]}
11... c5 {[%clk 0:02:34.3]} 12. exd6 {[%clk 0:02:05.7]} 12... Nf5 {[%clk
0:02:07.5]} 13. dxc5 {[%clk 0:01:34.9]} 13... exd6 {[%clk 0:02:07]} 14. Nxd6
{[%clk 0:01:31.6]} 14... Nxd6 {[%clk 0:02:04.9]} 15. cxd6 {[%clk 0:01:32.4]}
15... Nc5 {[%clk 0:01:59.2]} 16. Bc4 {[%clk 0:01:07]} 16... Ne4 {[%clk 0:01:32]}
17. Ne5 {[%clk 0:00:26.5]} 17... Qb6+ {[%clk 0:00:56.7]} 18. Kh1 {[%clk
0:00:27.2]} 18... Nf2+ {[%clk 0:00:58]} 19. Rxf2 {[%clk 0:00:28.5]} 19... Qxf2
{[%clk 0:00:59.9]} 20. Qe2 {[%clk 0:00:24.3]} 20... Bxg2# {[%clk 0:00:58.6]} 0-1

[Event "*** Titled Tuesday Blitz"]
[Site "Chess.com"]
[Date "2019.03.05"]
[Round "3"]
[White "chesstatour"]
[Black "j2806"]
[Result "1-0"]
[WhiteElo "2016"]
[BlackElo "1806"]
[TimeControl "180+2"]
[EndTime "13:39:34 PST"]
[Termination "chesstatour won by resignation"]

1. c4 {[%clk 0:03:01.9]} 1... Nf6 {[%clk 0:03:00]} 2. Nc3 {[%clk 0:03:02.2]}
2... e6 {[%clk 0:03:00.4]} 3. e4 {[%clk 0:03:02.6]} 3... d5 {[%clk 0:02:48]} 4.
e5 {[%clk 0:03:03.2]} 4... Ne4 {[%clk 0:02:43.7]} 5. Nxe4 {[%clk 0:03:00.2]}
5... dxe4 {[%clk 0:02:44.8]} 6. Qg4 {[%clk 0:03:01.8]} 6... Qd4 {[%clk
0:02:41.4]} 7. Nf3 {[%clk 0:02:56.1]} 7... h5 {[%clk 0:02:05.8]} 8. Qf4 {[%clk
0:02:48.4]} 8... Qc5 {[%clk 0:01:29.9]} 9. Qxe4 {[%clk 0:02:46]} 9... Nc6 {[%clk
0:01:19.8]} 10. Be2 {[%clk 0:02:37.6]} 10... b6 {[%clk 0:01:14.7]} 11. O-O
{[%clk 0:02:19.4]} 11... Bb7 {[%clk 0:01:04.1]} 12. d4 {[%clk 0:01:49.8]} 12...
Qb4 {[%clk 0:00:44.9]} 13. a3 {[%clk 0:01:24.7]} 13... Qa4 {[%clk 0:00:34.8]}
14. Qe3 {[%clk 0:00:57.3]} 14... O-O-O {[%clk 0:00:23.1]} 15. b3 {[%clk
0:00:57]} 15... Qa5 {[%clk 0:00:21]} 16. Bd2 {[%clk 0:00:54.1]} 16... Qa6 {[%clk
0:00:20.8]} 17. c5 {[%clk 0:00:50.1]} 17... b5 {[%clk 0:00:21.4]} 18. a4 {[%clk
0:00:50.1]} 1-0

[Event "*** Titled Tuesday Blitz"]
[Site "Chess.com"]
[Date "2019.03.05"]
[Round "3"]
[White "Zarikovs1999"]
[Black "PocketPivot"]
[Result "0-1"]
[WhiteElo "2296"]
[BlackElo "2484"]
[TimeControl "180+2"]
[EndTime "13:39:40 PST"]
[Termination "PocketPivot won on time"]

1. Nf3 {[%clk 0:03:01.2]} 1... Nf6 {[%clk 0:03:00.5]} 2. b3 {[%clk 0:03:01.7]}
2... g6 {[%clk 0:02:59.7]} 3. Bb2 {[%clk 0:03:02.3]} 3... Bg7 {[%clk 0:03:01.6]}
4. e3 {[%clk 0:03:03.2]} 4... b6 {[%clk 0:02:56.7]} 5. c4 {[%clk 0:03:01.8]}
5... Bb7 {[%clk 0:02:57.6]} 6. Nc3 {[%clk 0:03:03.4]} 6... c5 {[%clk 0:02:53.9]}
7. g3 {[%clk 0:03:02]} 7... O-O {[%clk 0:02:42.3]} 8. Bg2 {[%clk 0:03:02.1]}
8... e6 {[%clk 0:02:43.7]} 9. O-O {[%clk 0:02:51.4]} 9... Na6 {[%clk 0:02:43.5]}
10. d4 {[%clk 0:02:41.2]} 10... Qe7 {[%clk 0:02:44.4]} 11. Qe2 {[%clk
0:02:15.6]} 11... Ne4 {[%clk 0:02:43.8]} 12. Nxe4 {[%clk 0:02:04.6]} 12... Bxe4
{[%clk 0:02:45.7]} 13. Nd2 {[%clk 0:01:48.4]} 13... Bxg2 {[%clk 0:02:29.8]} 14.
Kxg2 {[%clk 0:01:50.3]} 14... d6 {[%clk 0:02:31.3]} 15. Nf3 {[%clk 0:01:39.9]}
15... Rfd8 {[%clk 0:02:29.3]} 16. Rad1 {[%clk 0:01:38.5]} 16... Nb4 {[%clk
0:02:26.2]} 17. dxc5 {[%clk 0:01:31.7]} 17... dxc5 {[%clk 0:02:26.7]} 18. Bxg7
{[%clk 0:01:28.8]} 18... Kxg7 {[%clk 0:02:28.6]} 19. a3 {[%clk 0:01:29.1]} 19...
Nc6 {[%clk 0:02:27.2]} 20. Qb2+ {[%clk 0:01:29.4]} 20... Qf6 {[%clk 0:02:24.4]}
21. Qxf6+ {[%clk 0:01:02.6]} 21... Kxf6 {[%clk 0:02:26.3]} 22. Nd2 {[%clk
0:01:04.3]} 22... Ke7 {[%clk 0:02:09.4]} 23. Ne4 {[%clk 0:00:21.3]} 23... Na5
{[%clk 0:02:02.7]} 24. b4 {[%clk 0:00:22]} 24... cxb4 {[%clk 0:01:53.4]} 25.
axb4 {[%clk 0:00:23.9]} 25... Nxc4 {[%clk 0:01:54.8]} 26. Rc1 {[%clk 0:00:18.6]}
26... Rac8 {[%clk 0:01:51.6]} 27. Kf3 {[%clk 0:00:13]} 27... f5 {[%clk
0:01:47.2]} 0-1

[Event "*** Titled Tuesday Blitz"]
[Site "Chess.com"]
[Date "2019.03.05"]
[Round "3"]
[White "toog"]
[Black "PotapovaM"]
[Result "0-1"]
[WhiteElo "2249"]
[BlackElo "2417"]
[TimeControl "180+2"]
[EndTime "13:39:40 PST"]
[Termination "PotapovaM won by resignation"]

1. e4 {[%clk 0:03:01.9]} 1... c5 {[%clk 0:03:00.6]} 2. Nf3 {[%clk 0:03:02.5]}
2... d6 {[%clk 0:03:01.8]} 3. d4 {[%clk 0:03:03.3]} 3... cxd4 {[%clk 0:03:03.7]}
4. Nxd4 {[%clk 0:03:04]} 4... Nf6 {[%clk 0:03:04.8]} 5. Nc3 {[%clk 0:03:05.1]}
5... a6 {[%clk 0:03:06.2]} 6. Bg5 {[%clk 0:02:59.1]} 6... e6 {[%clk 0:03:06.6]}
7. f4 {[%clk 0:02:56.7]} 7... h6 {[%clk 0:03:07.7]} 8. Bh4 {[%clk 0:02:54.4]}
8... Qb6 {[%clk 0:03:08.4]} 9. a3 {[%clk 0:02:53.2]} 9... Be7 {[%clk 0:03:03.6]}
10. Bf2 {[%clk 0:02:53.3]} 10... Qc7 {[%clk 0:03:04.3]} 11. Qf3 {[%clk
0:02:53.2]} 11... Nbd7 {[%clk 0:03:04.4]} 12. O-O-O {[%clk 0:02:53]} 12... b5
{[%clk 0:03:02.8]} 13. g4 {[%clk 0:02:45.9]} 13... Bb7 {[%clk 0:03:03.4]} 14. h4
{[%clk 0:02:44.4]} 14... d5 {[%clk 0:02:52.7]} 15. Bd3 {[%clk 0:01:55.7]} 15...
Bxa3 {[%clk 0:02:00.1]} 16. Ndxb5 {[%clk 0:01:45.4]} 16... axb5 {[%clk
0:01:59.1]} 17. Nxb5 {[%clk 0:01:46]} 17... Bxb2+ {[%clk 0:01:58.2]} 18. Kxb2
{[%clk 0:01:46.8]} 18... Qa5 {[%clk 0:01:54]} 19. Be1 {[%clk 0:01:23]} 19...
Qa2+ {[%clk 0:01:51.3]} 20. Kc1 {[%clk 0:01:22.9]} 20... O-O {[%clk 0:01:39.6]}
21. e5 {[%clk 0:01:21.4]} 21... Ne4 {[%clk 0:01:25.3]} 22. Bxe4 {[%clk
0:01:07.2]} 22... dxe4 {[%clk 0:01:27.2]} 23. Qb3 {[%clk 0:01:06]} 23... Qxb3
{[%clk 0:00:49.4]} 24. cxb3 {[%clk 0:01:05.1]} 24... Ra1+ {[%clk 0:00:50.7]} 25.
Kd2 {[%clk 0:00:58.7]} 25... e3+ {[%clk 0:00:51.1]} 0-1

[Event "*** Titled Tuesday Blitz"]
[Site "Chess.com"]
[Date "2019.03.05"]
[Round "3"]
[White "ShadyH9"]
[Black "PchelkinVK"]
[Result "0-1"]
[WhiteElo "2291"]
[BlackElo "2586"]
[TimeControl "180+2"]
[EndTime "13:39:46 PST"]
[Termination "PchelkinVK won by resignation"]

1. d4 {[%clk 0:03:01.9]} 1... e5 {[%clk 0:02:58.3]} 2. e3 {[%clk 0:03:01]} 2...
Nc6 {[%clk 0:02:58.4]} 3. dxe5 {[%clk 0:02:51.2]} 3... Nxe5 {[%clk 0:02:58.5]}
4. Nd2 {[%clk 0:02:52.6]} 4... Nf6 {[%clk 0:02:59]} 5. Ngf3 {[%clk 0:02:53.5]}
5... Ng6 {[%clk 0:02:56.5]} 6. b3 {[%clk 0:02:47.8]} 6... d5 {[%clk 0:02:57.4]}
7. Bb2 {[%clk 0:02:48.3]} 7... Bd6 {[%clk 0:02:58.8]} 8. Be2 {[%clk 0:02:42.5]}
8... Qe7 {[%clk 0:02:51.8]} 9. c4 {[%clk 0:02:39.7]} 9... Bg4 {[%clk 0:02:46.7]}
10. h3 {[%clk 0:02:33.2]} 10... Bxf3 {[%clk 0:02:46.7]} 11. Nxf3 {[%clk
0:02:32.7]} 11... Bb4+ {[%clk 0:02:46.2]} 12. Kf1 {[%clk 0:02:21.2]} 12... O-O-O
{[%clk 0:02:46.9]} 13. Qc2 {[%clk 0:02:20.4]} 13... Ne4 {[%clk 0:02:34.5]} 14.
a3 {[%clk 0:02:11.3]} 14... Bd6 {[%clk 0:02:19.4]} 15. cxd5 {[%clk 0:02:12]}
15... Rhe8 {[%clk 0:02:20.8]} 16. Nd4 {[%clk 0:01:56.3]} 16... Nxf2 {[%clk
0:01:47.4]} 17. Nf5 {[%clk 0:01:53.1]} 17... Qe4 {[%clk 0:01:39]} 18. Rc1 {[%clk
0:01:31.8]} 18... Qxc2 {[%clk 0:01:02.6]} 19. Rxc2 {[%clk 0:01:33.7]} 19... Nxh1
{[%clk 0:01:00.8]} 20. Bxg7 {[%clk 0:00:38.3]} 20... Ng3+ {[%clk 0:00:54.3]} 21.
Nxg3 {[%clk 0:00:37.9]} 21... Bxg3 {[%clk 0:00:56.2]} 22. Bg4+ {[%clk
0:00:37.1]} 0-1